Cogmind - Beta 15 @@@ ROGUE MODE // 2025.08.30 @ 00:13:58 Player: ID-34L Result: Destroyed by G-34 Mercenary with Small Laser Performance ------------- Evolutions (1) 500 Regions Visited (2) 400 Robots Destroyed (61) 305 Value Destroyed (1419) 1419 Prototype IDs (3) 60 Alien Tech Used (0) 0 Bonus (65) 65 TOTAL SCORE: 2749 Bonus ------- High Alert Combat Kills 65 Cogmind --------- Core Integrity 0/400 Matter 300/300 Energy 280/280 System Corruption 0% Temperature Cool (12) Movement Core (250) Ox4 Location -9/Materials Parts ------- > --- POWER (1) -------- Cooled Ion Engine > --- PROPULSION (2) --- (None) > --- UTILITY (3) ------ Small Storage Unit Advanced Targeting Computer > --- WEAPON (3) ------- Mace > --- INVENTORY (8) ---- Improved Ion Engine Improved Ion Engine Improved Ion Engine Cooled Ion Engine Light Nuclear Core Light Treads Peak State ------------ > --- POWER ------------ Ion Engine > --- PROPULSION ------- Light Treads Improved Treads > --- UTILITY ---------- Small Storage Unit Advanced Targeting Computer Backup Plating I > --- WEAPON ----------- Small Laser Heavy Assault Rifle Shotgun > --- INVENTORY -------- Improved Ion Engine Improved Ion Engine Improved Ion Engine Light Nuclear Core Light Treads Small Laser Grenade Launcher Grenade Launcher [Rating: 15] Favorites ----------- Power Ion Engine Engine Ion Engine Propulsion Light Treads Treads Light Treads Wheel Compact Wheel Utility Small Storage Unit Storage Small Storage Unit Processor Advanced Targeting Computer Protection Backup Plating I Weapon Small Laser Energy Gun Small Laser Ballistic Gun Shotgun Launcher Grenade Launcher Impact Weapon Mace Build | -11 -10 -9 ------- Run | Yrd Mat Mat Slots Evolved 2 | . . 2 Power . | . . . Propulsion . | . . . Utility 1 | . . 1 Weapon 1 | . . 1 Parts Attached 31 | 6 8 17 Power 5 | 1 1 3 Engine 5 | 1 1 3 Core . | . . . Reactor . | . . . Propulsion 8 | 2 2 4 Treads 6 | 2 . 4 Leg . | . . . Wheel 2 | . 2 . Hover . | . . . Flight . | . . . Utility 4 | 1 . 3 Device . | . . . Storage 1 | 1 . . Processor 1 | . . 1 Hackware . | . . . Protection 2 | . . 2 Artifact . | . . . Weapon 14 | 2 5 7 Energy Gun 8 | 1 5 2 Energy Cannon . | . . . Ballistic Gun 3 | 1 . 2 Ballistic Cannon . | . . . Launcher 2 | . . 2 Special Weapon . | . . . Impact Weapon 1 | . . 1 Slashing Weapon . | . . . Piercing Weapon . | . . . Special Melee Weapon . | . . . Unidentified Prototypes 1 | . . 1 Parts Lost 21 | . 6 15 Power 2 | . 1 1 Propulsion 5 | . 1 4 Utility 2 | . . 2 Weapon 12 | . 4 8 Highest Loss Streak 4 | . 3 4 To Critical Strikes . | . . . Average Backups 6 | 2 6 6 Power 3 | . 2 4 Propulsion . | 1 1 . Utility . | . . . Weapon 2 | . 3 2 Tool/Special . | . . . Unused Backups 11 | . 4 7 Power 6 | . 1 5 Propulsion 2 | . 1 1 Utility . | . . . Weapon 3 | . 2 1 Tool/Special . | . . . Average Slot Usage (%) 81 | . 85 77 Engine 10 | . 13 8 Treads 14 | . 10 17 Wheel 7 | . 17 . Storage 12 | . 14 11 Processor 5 | . . 9 Protection 4 | . 1 6 Energy Gun 17 | . 24 11 Ballistic Gun 4 | . 3 5 Launcher 2 | . . 5 Peak Build Rating 15 | 6 7 15 Average Rating 9 | 5 6 11 On Entrance 4 | . 6 7 Naked Turns . | . . . Heaviest Build 21 | 12 14 21 Greatest Support 43 | 40 40 43 Greatest Overweight (x) 6 | . . 6 Average Overweight (x) . | . . . Largest Inventory Capacity 8 | 8 8 8 Average Capacity 7 | 7 8 8 Most Carried 8 | 4 8 8 Average Carried 6 | 2 6 6 Final Capacity 8 | 8 8 8 Final Carried 7 | 4 7 6 Class Distribution -------------------- 83% | Mutant 8% | Scavenger-Gunner 8% | Gunner Dominant Class ---------------- Mutant | -10/Materials Mutant | -9/Materials Resources | -11 -10 -9 ----------- Run | Yrd Mat Mat Matter Collected 975 | 230 100 645 Remotely . | . . . Salvage Created 1771 | . 593 1178 Parts 119 | . 40 79 Haulers Intercepted 4 | . 1 3 Recyclers Shooed . | . . . Parts Field Recycled . | . . . Retrieved Matter . | . . . Parts Self-Destructed . | . . . Prevented . | . . . Kills | -11 -10 -9 ------- Run | Yrd Mat Mat Combat Hostiles Destroyed 42 | . 14 28 Melee 1 | . . 1 Guns 34 | . 13 21 AOE 6 | . . 6 Classes Destroyed 8 | . 4 4 Worker 9 | . 3 6 Builder 5 | . . 5 Hauler 4 | . 1 3 Watcher 1 | . . 1 Swarmer 10 | . 3 7 Grunt 25 | . 11 14 Brawler 1 | . . 1 Sentry 6 | . . 6 Best Kill Streak 8 | . 6 8 Combat Bots Only 5 | . 5 5 Max Kills in Single Turn 2 | . 2 2 Gunslinging . | . . . Exploded 2 | . . 2 Melee 1 | . . 1 Uniques/NPCs Destroyed . | . . . Combat | -11 -10 -9 -------- Run | Yrd Mat Mat Hostile Shots Fired 309 | . 101 208 Missed 68 | . 18 50 Hits 241 | . 83 158 Projectile 241 | . 83 158 Critical Strikes 4 | . . 4 Damage Taken 2974 | . 1018 1956 Core 628 | . 225 403 Absorbed by Shields . | . . . Regen/Repaired (Parts) 77 | . 77 . Core Remaining (%) 55 | 100 10 . Volleys Fired 147 | . 61 86 Largest 3 | . 2 3 Hottest 116 | . 80 116 Shots Fired 304 | . 120 184 Gun 286 | . 120 166 Cannon . | . . . Launcher 18 | . . 18 Special . | . . . Kinetic 119 | . 25 94 Thermal 136 | . 77 59 Explosive 18 | . . 18 Electromagnetic 31 | . 18 13 Robot Hit Streak 19 | . 10 19 Robot Miss Streak 4 | . 3 4 Penetration Max . | . . . Secondary Targets 2 | . 2 . Max Gunslinging Chain 1 | . 1 . Shots Hit Robots 181 | . 77 104 Core Hits 110 | . 32 78 Critical Kills . | . . . Critical Parts Destroyed 4 | . 2 2 Critical Strikes 6 | . 2 4 Burn 2 | . . 2 Destroy 2 | . 2 . Smash 2 | . . 2 Melee Attacks 6 | . . 6 Impact 6 | . . 6 Slashing . | . . . Piercing . | . . . Sneak Attacks 2 | . . 2 Combat Hostiles . | . . . Follow-up Attacks . | . . . Damage Inflicted 3144 | . 972 2172 Guns 2127 | . 819 1308 Cannons . | . . . Explosions 787 | . 103 684 Melee 171 | . . 171 Ramming 59 | . 50 9 Kinetic 875 | . 144 731 Thermal 1037 | . 656 381 Explosive 684 | . . 684 Electromagnetic 318 | . 122 196 Impact 171 | . . 171 Slashing . | . . . Piercing . | . . . Highest Corruption . | . . . Average Corruption . | . . . Corruption Purged . | . . . Corruption Blocked . | . . . Overload Shots . | . . . Overflow Damage 139 | . . 139 Projectiles . | . . . Explosions 41 | . . 41 Melee 98 | . . 98 Knockbacks 1 | . . 1 Impact 1 | . . 1 Kinetic . | . . . Secondary . | . . . Self-Inflicted Damage 273 | . 67 206 Shots 7 | . 1 6 Rammed 12 | . 8 4 Targets Rammed 13 | . 8 5 Kicked . | . . . Crushed 1 | . . 1 Highest Temperature 204 | . 204 186 Average Temperature 60 | . 70 49 Received Heat Transfer 1149 | . 492 657 Siege Activations . | . . . Martial Activations . | . . . Shielding Activations . | . . . Robots Disrupted . | . . . Combat Hostiles . | . . . Robots Corrupted 2 | . 1 1 Combat Hostiles 1 | . 1 . Parts Fried 6 | . 1 5 Impact Corruptions 4 | . . 4 Robots Melted . | . . . Combat Hostiles . | . . . Parts Melted 2 | . 1 1 Heat Transferred 2381 | . 1325 1056 Parts Sabotaged . | . . . Parts Stolen . | . . . Parts Stripped . | . . . Power Chain Reactions 2 | . 2 . Alert | -11 -10 -9 ------- Run | Yrd Mat Mat Maximum Alert Level 2 | . . 2 Low Security (%) 70 | 100 100 46 Level 1 8 | . . 15 Level 2 20 | . . 37 Level 3 . | . . . Level 4 . | . . . Level 5 . | . . . High Security . | . . . Max Security . | . . . Peak Influence 524 | . 111 524 Initial 4 | . . 4 Average 151 | . 35 249 Influence Increases 1461 | . 462 999 Destroy 0b10 Robot/C 840 | . 280 560 Destroy 0b10 Robot/NC 95 | . 20 75 Destroy Leader 200 | . 52 148 Trap Triggered on 0b10 20 | . 20 . Successful Hack 34 | . 20 14 Disable Machine 60 | . . 60 Destroy Structure 107 | . 10 97 Lose Combat Pursuer 105 | . 60 45 Influence Decreases 990 | . 451 539 Entered New Map 7 | . . 7 Time Decay 783 | . 391 392 Lost Part 200 | . 60 140 Squads Dispatched 7 | . 2 5 Investigation 4 | . 2 2 Extermination . | . . . Reinforcement 1 | . . 1 Assault 2 | . . 2 Garrison . | . . . Intercept . | . . . Searches Triggered . | . . . Construction Impeded . | . . . Haulers Reinforced . | . . . Active Scanning Responses . | . . . Cargo Convoy Interrupts . | . . . Stealth | -11 -10 -9 --------- Run | Yrd Mat Mat Distress Signals 1 | . . 1 Communications Jammed . | . . . Distress Signals . | . . . Times Spotted 69 | . 21 48 Peak Tracking Total 7 | . 3 7 Tactical Retreats 7 | . 4 3 Traps | -11 -10 -9 ------- Run | Yrd Mat Mat Traps Triggered 2 | . 1 1 Indirectly . | . . . Trap Hack Attempts . | . . . Triggered . | . . . Disarmed . | . . . Reprogrammed 6 | . 6 . Reused 2 | . 2 . Traps Extracted . | . . . Installed . | . . . Triggered 2 | . 2 . Machines | -11 -10 -9 ---------- Run | Yrd Mat Mat Machines Disabled 4 | . . 4 Max in Single Turn 1 | . . 1 Machines Repaired . | . . . Machines Dismantled . | . . . Machines Sabotaged . | . . . Overloaded Fab Kills . | . . . Hacking | -11 -10 -9 --------- Run | Yrd Mat Mat Machines Accessed 15 | . 9 6 Terminals 9 | . 6 3 Fabricators . | . . . Repair Stations 1 | . 1 . Recycling Units 3 | . 2 1 Scanalyzers 2 | . . 2 Garrison Access . | . . . Total Hacks 44 | . 27 17 Successful 23 | . 16 7 Failed 21 | . 11 10 Catastrophic 4 | . 3 1 Database Lockouts . | . . . Manual . | . . . Terminals 30 | . 21 9 Fabricators . | . . . Repair Stations 4 | . 4 . Recycling Units 5 | . 2 3 Scanalyzers 5 | . . 5 Garrison Access . | . . . Terminal Hacks 13 | . 11 2 Prototype ID Bank 1 | . 1 . Level Access Points 1 | . 1 . Emergency Access Points 2 | . 2 . Repair Station Index 1 | . 1 . Locate Traps 3 | . 3 . Reprogram Traps 1 | . 1 . Hauler Manifests 1 | . 1 . Zone Layout 3 | . 1 2 Fabricator Hacks . | . . . Repair Station Hacks 3 | . 3 . Scan Component 1 | . 1 . Repair 1 | . 1 . Refit 1 | . 1 . Recycling Unit Hacks 3 | . 2 1 Report Inventory 3 | . 2 1 Scanalyzer 4 | . . 4 Insert Component 2 | . . 2 Analyze 2 | . . 2 Garrison Access Hacks . | . . . Unauthorized Hacks . | . . . Terminals . | . . . Fabricators . | . . . Repair Stations . | . . . Recycling Units . | . . . Scanalyzers . | . . . Garrison Access . | . . . Data Cores Recovered . | . . . Used . | . . . Hacking Detections 11 | . 6 5 Full Trace Events 7 | . 3 4 Feedback Events . | . . . Feedback Blocked . | . . . Robot Schematics Acquired . | . . . Robots Built . | . . . Authchips . | . . . Time . | . . . Total Robot Build Rating . | . . . Part Schematics Acquired 2 | . . 2 Parts Built . | . . . Authchips . | . . . Time . | . . . Total Part Build Rating . | . . . Parts Repaired 1 | . 1 . Time 26 | . 26 . Parts Recycled . | . . . Recycled Matter . | . . . Retrieved Matter . | . . . Retrieved Components . | . . . Parts Scanalyzed 2 | . . 2 Part Schematics Acquired 2 | . . 2 Parts Damaged . | . . . Bothacking | -11 -10 -9 ------------ Run | Yrd Mat Mat Used RIF Installer . | . . . Robots Hacked . | . . . Non-combat . | . . . Combat . | . . . Robot Hacks Applied . | . . . Relay Couplers Released . | . . . Fabnet Peak Effective % . | . . . Robots Rewired . | . . . Allies Hacked . | . . . Hacks Repelled . | . . . Allies | -11 -10 -9 -------- Run | Yrd Mat Mat Total Allies . | . . . Largest Group . | . . . Highest-Rated Group . | . . . Highest-Rated Ally . | . . . Total Orders . | . . . Ally Attacks . | . . . Total Damage . | . . . Kills . | . . . Allies Corrupted . | . . . Allies Melted . | . . . Intel | -11 -10 -9 ------- Run | Yrd Mat Mat Active Infowar (turns) . | . . . Robot Analysis Total . | . . . Derelict Logs Recovered . | . . . Drone Launches . | . . . Drone Recoveries . | . . . Exploration | -11 -10 -9 ------------- Run | Yrd Mat Mat Turns Passed 3005 | 98 1259 1648 Spaces Moved 1479 | 57 676 746 Core 96 | 7 . 89 Treads 893 | 50 200 643 Legs . | . . . Wheels 490 | . 476 14 Hover . | . . . Flight . | . . . Fastest Speed 50 | 50 100 100 Average Speed 146 | 146 117 172 Slowest Speed 350 | 160 160 350 Overloaded Moves . | . . . Propulsion Burnouts . | . . . Robots Hopped . | . . . Potential Cave-ins 2 | . . 2 Cave-ins Triggered . | . . . Exploration Rate (%) 49 | 6 84 58 Regions Visited 2 Branch Regions . Pre-discovered Areas . | . . . Known Exits Taken 1 | . 1 . Unknown Exits Taken 1 | 1 . . Scrap Searched . | . . . Spaces Dug . | . . . Terrain Destroyed 155 | . 10 145 Melee . | . . . Projectile . | . . . AOE 155 | . 10 145 Terrain Rammed . | . . . Walls Destroyed . | . . . Machines Disabled . | . . . Actions | -11 -10 -9 --------- Run | Yrd Mat Mat Total 2038 | 72 1028 938 Wait 298 | . 248 50 Move 1477 | 56 675 746 Hop . | . . . Pick Up 48 | 10 19 19 Fast Attach . | . . . Attach 29 | 6 7 16 Detach . | . . . Swap 3 | . 1 2 Drop 17 | . 9 8 Fire 147 | . 61 86 Melee 6 | . . 6 Ram 7 | . 6 1 Kick . | . . . Crush 6 | . 2 4 Escape Stasis . | . . . Rewire . | . . . Trap . | . . . Miscellaneous . | . . . Route ------- -11/Scrapyard -10/Materials (discovered 5 exits: *Mat x3 / [*Min] / [*Sub]) -9/Materials (discovered 2 exits: [*Mat] / [*Min]) History --------- Turn | Location | Event 8 | -11/Scrapyard | Discovered new exit (range 16) 99 | -11/Scrapyard | Entered Materials 100 | -10/Materials | Met a group of wandering Federalists 138 | -10/Materials | Discovered new exit (range 15) 170 | -10/Materials | Discovered new exit (range 14) 309 | -10/Materials | Build established: Mutant 443 | -10/Materials | Identified exit to Materials 543 | -10/Materials | Core integrity fell below 50% 594 | -10/Materials | Core integrity fell below 20% 620 | -10/Materials | Lost 3 parts (1p2w) 905 | -10/Materials | Discovered new exit (range 11) 1281 | -10/Materials | Repaired Lgt. Treads 1358 | -10/Materials | Entered another Materials area 1358 | -9/Materials | Evolved 2 slots: Utility x1, Weapon x1 1651 | -9/Materials | Discovered new exit (range 15) 2193 | -9/Materials | Lost 4 parts (1p1n2w) 2216 | -9/Materials | Core integrity fell below 50% 2240 | -9/Materials | Lost 3 parts (1n1u1w) 2558 | -9/Materials | First assault squad dispatched 2668 | -9/Materials | Discovered new exit (range 14) 2809 | -9/Materials | Core integrity fell below 20% 3006 | -9/Materials | Destroyed by G-34 Mercenary with Small Laser Last Messages --------------- 2S, assault force dispatched. 02972_ U-05 Engineer destroyed. 02973_ K-01 Serf collects debris. 02984_ C-30 ARC bursts open, deploying its payload. 02984_ G-47 Trooper unfolds itself. 02984_ G-34 Mercenary unfolds itself. 02984_ I-25 Savior unfolds itself. 02986_ EM Shotgun destroyed. 02986_ K-01 Serf collects debris. 02988_ Lgt. Treads destroyed. 02998_ Hadron Collector disabled. 02999_ G-47 Trooper suffers critical hit (Smash). 02999_ Destroyed Aluminum Leg. 02999_ G-47 Trooper system corrupted by crushing effect. 03000_ G-47 Trooper misfires. 03000_ K-01 Serf collects debris. 03005_ Lgt. Treads destroyed. Map ----- +----------------------------------------------------+ | ?????????????????????????????????????????????????? | | ?????????????????????????????????????????????????? | | ?????????????????????????????????????????????????? | | ?????????????????????????????????????????????????? | | ?????????????????????????????????????????????????? | | ?????????????????????????????????????????????????? | | ?????????????????????????????????????????????????? | | ?????????????????????????????????????????????????? | | ?????????????????????????????????????????????????? | | ?????????????????????????????????????????????????? | | ?????????????????????????????????????????????????? | | ?????????????????????????????????????????????????? | | ?????????????????????????????????????????????????? | | ?????????????????????????????????????????????????? | | ?????????????????????????????????????????????????? | | ????????#??#######???????????????????????????????? | | ????????# #???????????????????????????????? | | ????????# """ #???????????????????????????????? | | ????????# """ #################???????????????? | | ????????# """ ## ????????????????? | | ????????# ## ??????????????? | | ????????# """ ## ??????????????? | | ????????# """ ## """" "" ?????????????? | | ????????# """ ## """" """ ?????????????? | | ????????# ## """i """" ????????????? | | ????????#####+##### @ g % ????????? | | ############ % kkggg ????????? | | + | ############+###???????????? | | ####### % #???????????????? ?????????? | | #?????# k#### = #?????????????? ??? ????? | | "" #?????# #??# #???????????? ? ]?????? | | S"" #?????# #??# #???????????? # ]?????? | | "" #?????# #??# #???????????? ????? | | +########## #?# #???????????? ???? | | % ! %= #?# #???????????# ???? | | [!/ #?# #??????????# ???? | | %=!% #?# ########### ???? | | +######+### #?# # ## # ## ???? | | =% ## ###+##### # ## #% # ????? | | *% ## # + + """ ## #### #?###### | | ## #] ]= # # """ ##### #####????# | | !! ## # # #! """ # #????# | | !! ## ####### # # # #????# | | ###########????#####+######### #????# """" | | #??????# #???# """ "" #????# """" | | """ #??????# #???# """ "" #????# """" | | """ #??????# #???# """ """ #?????##### | | "" """ #??????# """ """ #???# ########### | | "" #??????# """="" #???# + | | "T """ #??????# """*"%" #???#####+##### | +----------------------------------------------------+ Best States ------------- Heat Dissipation 28 Energy Generation 14 Energy Capacity 280 Matter Stores 300 Matter Capacity 300 Sight Range 16 Terrain Scan Density 10 Armor Coverage 225 Evasion (%) 40 Targeting Accuracy 8 Recoil Reduction 2 Item Schematics ----------------- Imp. Ion Engine | -9/Materials | Scanalyzed Grenade Launcher | -9/Materials | Scanalyzed Robot Schematics ------------------ None Fabricated ------------ Nothing Repaired ---------- Lgt. Treads | 45% | -10/Materials Alien Tech Used ----------------- None Achievements -------------- Power Corrupts Risk Taker Significant Disruption Challenges ------------ None Game ------ Seed MetaWarpSplitter Manual? 0 Play Time 00:25:37 Cumulative 2.4 hours Start 2025.08.29 @ 23:51:13 End 2025.08.30 @ 00:13:58 Sessions 1 Manual Loads 0 Difficulty Rogue Special Mode None Game No. 7 Rogue 7 Adventurer 0 Explorer 0 Win Type - Total 0 Types 0/0/0/0/0/0/0/0/0/0 Lore% 0 Gallery% 4 Achievement% 6 Wizard Run 0 Options --------- Layout 1 ASCII 0 Keyboard 1 Movement Numpad Keybinds 0 Fullscreen 0 Font 20/Terminus Map View 50x35 Zoom Use 0% Tactical HUD 1 Map Filters NONE Filters NONE Steam 1 RUN: 37eda959-9a62-43e2-8c13-8d72a6c374e0